bitfinex/quotes_ETHUSD_20240709
["timestamp","ask_amount","ask_price","bid_price","bid_amount"]
[1720515608606,0.04810128,3092.4,3091.4,1.719]
[1720515608806,0.04810128,3092.4,3091.3,3.23481]
[1720515609058,0.26534078,3092.4,3091.6,3.2345]
[1720515609366,3.33820648,3092.5,3091.9,3.23425]
[1720515609527,3.33820648,3092.5,3092.2,3.23389]
[1720515609728,0.33820648,3092.5,3092.3,3.23381]
[1720515610827,0.33820648,3092.5,3092.1,3.23395]
[1720515611029,0.33820648,3092.5,3091.8,1.719]
[1720515611228,2.69190648,3092.5,3091.6,3.2345]
[1720515611444,2.69190648,3092.5,3091.7,3.23443]
[1720515612847,2.69190648,3092.5,3091.4,1.719]
[1720515612848,3.0,3092.4,3091.4,4.9537]
[1720515613044,3.0,3092.4,3091.2,3.23493]
[1720515613045,0.04810128,3092.3,3091.2,3.23493]
[1720515613587,0.04810128,3092.3,3091.0,1.719]
[1720515613873,0.04810128,3092.3,3090.6,1.719]
[1720515613874,1.42557962,3092.2,3090.6,1.719]
[1720515614079,2.4289,3092.0,3090.4,5.7271393]
[1720515614284,1.16887077,3091.9,3090.5,3.23566]
[1720515614579,1.12089569,3091.8,3090.4,2.4913393]
[1720515614777,0.49502822,3091.8,3090.4,2.4913393]
[1720515614981,0.49502822,3091.8,3090.5,3.2357]
[1720515615167,0.49502822,3091.8,3090.4,0.1131393]
[1720515615168,2.45,3091.6,3090.4,0.1131393]
[1720515615367,0.245,3091.5,3090.4,0.1131393]
[1720515615975,3.245,3091.5,3090.4,0.1131393]
[1720515616392,1.1210417,3091.4,3090.4,0.1131393]
[1720515616540,3.245,3091.5,3090.4,0.1131393]
[1720515616541,1.1210417,3091.3,3090.4,0.1131393]
[1720515616741,1.1210417,3091.4,3090.4,0.1131393]
[1720515616948,3.245,3091.5,3090.5,3.30042189]
[1720515617156,3.0,3091.5,3090.6,3.23555]
[1720515617390,3.0,3091.5,3090.7,3.30019182]
[1720515617551,2.45,3091.6,3090.8,3.2354]
[1720515617752,2.45,3091.6,3090.6,1.719]
[1720515618060,0.24981013,3091.5,3090.4,0.1131393]
[1720515618262,0.29791141,3091.5,3090.4,0.1131393]
[1720515618562,1.1209869,3091.4,3090.4,0.1131393]
[1720515618770,1.1209869,3091.3,3090.4,0.1131393]
[1720515619074,3.24981013,3091.5,3090.4,0.1131393]
[1720515619295,1.69102276,3091.4,3090.4,0.1131393]
[1720515619504,1.12104175,3091.3,3090.4,0.1131393]
[1720515619715,0.56998101,3091.4,3090.4,0.1131393]
[1720515620006,1.12103055,3091.3,3090.4,0.1131393]
[1720515620168,0.56998101,3091.4,3090.4,0.1131393]
[1720515620368,1.50301959,3091.3,3090.4,0.1131393]
[1720515620597,1.12104048,3091.2,3090.4,0.1131393]
[1720515621410,1.16914176,3091.2,3090.4,0.1131393]
[1720515621707,0.38197911,3091.3,3090.4,0.1131393]
[1720515621908,1.12106037,3091.2,3090.4,0.1131393]
[1720515622209,0.38197911,3091.3,3090.4,0.1131393]
[1720515622509,1.12105137,3091.2,3090.4,0.1131393]
[1720515622673,0.20730115,3091.2,3090.4,0.1131393]
[1720515622875,0.38197911,3091.3,3090.4,0.1131393]
[1720515623075,1.12106253,3091.2,3090.4,0.1131393]
[1720515623375,0.38197911,3091.3,3090.4,0.1131393]
[1720515623587,1.12106776,3091.2,3090.4,0.1131393]
[1720515623811,0.38197911,3091.3,3090.4,0.1131393]
[1720515624019,2.3274,3091.1,3090.4,0.1131393]
[1720515624185,1.46591786,3091.0,3090.4,0.1131393]
[1720515624388,1.12107078,3090.9,3090.4,0.1131393]
[1720515624579,4.12107078,3090.9,3090.4,0.1131393]
[1720515624780,0.04810128,3090.8,3090.4,0.1131393]
[1720515625111,1.12119139,3090.8,3090.4,0.1131393]
[1720515625277,0.44660385,3090.8,3090.4,0.1131393]
[1720515625722,0.33812499,3090.7,3090.4,0.1131393]
[1720515628178,0.38622627,3090.7,3090.4,0.1131393]
[1720515628378,0.33812499,3090.7,3090.4,0.1131393]
[1720515628573,0.38622627,3090.7,3090.4,0.1131393]
[1720515630002,0.33812499,3090.7,3090.4,0.1131393]
[1720515632697,3.04810128,3090.5,3090.4,0.1131393]
[1720515632995,4.16955539,3090.5,3090.4,0.1131393]
[1720515633919,3.04810128,3090.5,3090.4,0.1131393]
[1720515634140,4.33422095,3090.5,3090.4,0.1131393]
[1720515634416,4.28611967,3090.5,3090.4,0.1131393]
[1720515634618,3.0,3090.5,3090.4,0.1131393]
[1720515635195,0.27778301,3090.6,3090.4,0.1131393]
[1720515635397,0.33812499,3090.7,3090.4,0.1131393]
[1720515636542,2.3805,3090.6,3090.4,0.1131393]
[1720515636837,0.04810128,3090.5,3090.4,0.1131393]
[1720515636994,1.16948725,3090.5,3090.4,0.1131393]
[1720515637194,4.16948725,3090.5,3090.4,0.1131393]
[1720515637399,5.3938029,3090.5,3090.4,0.1131393]
[1720515639558,5.39382863,3090.5,3090.4,0.1131393]
[1720515640526,5.34572735,3090.5,3090.4,0.1131393]
[1720515640723,1.12141613,3090.5,3090.4,0.1131393]
[1720515640942,0.33812499,3090.7,3090.4,0.1131393]
[1720515643116,0.33812499,3090.7,3090.4,2.4279393]
[1720515647168,0.33812499,3090.7,3090.6,6.47122]
[1720515647336,0.33812499,3090.7,3090.6,8.19022]
[1720515647663,7.36,3091.4,3090.9,3.23523]
[1720515647836,7.36,3091.4,3090.9,6.47044]
[1720515648019,7.36,3091.9,3091.1,3.23503]
[1720515648228,1.12076688,3091.8,3091.1,3.23503]
[1720515648460,0.33810514,3091.8,3091.3,6.46972]
[1720515648776,7.36,3092.4,3091.5,5.57887]
[1720515648929,0.33811319,3092.0,3091.3,3.23481]
[1720515649130,1.12064938,3091.9,3091.1,5.51043]
[1720515649364,0.33811319,3092.0,3091.1,5.51043]
[1720515649365,0.04810128,3092.3,3091.1,2.2754]
[1720515649525,3.44327637,3092.2,3091.1,5.51046]
[1720515649835,1.12067637,3092.1,3091.1,5.51046]
[1720515650167,1.12067637,3092.0,3091.1,5.51046]
[1720515650368,1.12067637,3092.1,3091.1,5.51046]
[1720515650525,4.12067637,3092.1,3091.1,5.51046]
[1720515650726,1.12067637,3092.0,3091.1,5.51046]
[1720515651157,1.12067637,3092.0,3091.1,3.23506]
[1720515651371,1.12067637,3092.0,3091.0,3.23519]
[1720515651664,0.04810128,3091.9,3090.8,2.4721]
[1720515651824,0.04810128,3091.9,3090.4,3.3488993]
[1720515651825,5.48237637,3091.8,3090.4,0.1131393]
[1720515652025,3.66682541,3091.7,3090.4,0.1131393]
[1720515652231,2.54614904,3091.7,3090.4,0.1131393]
[1720515652457,5.47105387,3091.6,3090.4,0.1131393]
[1720515652668,1.16912106,3091.5,3090.4,0.1131393]
[1720515652875,1.12101978,3091.4,3090.4,0.1131393]
[1720515653159,0.04810128,3091.3,3090.4,0.1131393]
[1720515653540,2.322,3091.1,3090.4,0.1131393]
[1720515653736,1.46532176,3091.0,3090.4,0.1131393]
[1720515653936,1.12101978,3090.9,3090.4,0.1131393]
[1720515654179,1.16912106,3090.9,3090.4,0.1131393]
[1720515654470,1.12101978,3090.8,3090.4,0.1131393]
[1720515654638,1.12101978,3090.9,3090.4,0.1131393]
[1720515654840,0.44642435,3090.8,3090.4,0.1131393]
[1720515655076,1.12101978,3090.7,3090.4,0.1131393]
[1720515655478,1.1212304,3090.6,3090.4,0.1131393]
[1720515657957,1.1212304,3090.6,3090.4,3.3488793]
[1720515658464,1.1212304,3090.6,3090.4,0.1131393]
[1720515658664,1.1212304,3090.6,3090.4,3.3489393]
[1720515658856,1.1212304,3090.6,3090.4,3.3488993]
[1720515659377,1.1212304,3090.6,3090.4,6.5846593]
[1720515659599,1.1212304,3090.6,3090.5,3.23572]
[1720515660356,1.1212304,3090.6,3090.5,8.86924]
[1720515660772,1.1212304,3090.6,3090.5,12.65496]
[1720515661373,1.1212304,3090.6,3090.5,9.41924]
[1720515661976,1.1212304,3090.6,3090.5,12.65496]
[1720515662360,1.1212304,3090.6,3090.5,9.41924]
[1720515663214,1.1212304,3090.6,3090.5,2.3978]
[1720515663360,1.1212304,3090.6,3090.4,0.1131393]
[1720515665710,1.1212304,3090.6,3090.5,3.23572]
[1720515666219,1.1212304,3090.6,3090.4,0.1131393]
[1720515668068,1.1212304,3090.6,3090.5,3.23572]
[1720515668570,1.1212304,3090.6,3090.4,2.3684393]
[1720515669481,1.1212304,3090.6,3090.4,5.6042393]
[1720515670000,1.1212304,3090.6,3090.5,3.23572]
[1720515670314,1.1212304,3090.6,3090.4,0.1131393]
[1720515671298,1.1212304,3090.6,3090.4,3.3488693]
[1720515671493,1.1212304,3090.6,3090.5,3.23572]
[1720515672378,1.1212304,3090.6,3090.5,6.47144]
[1720515672976,1.1212304,3090.6,3090.5,12.71226]
[1720515673721,1.1212304,3090.6,3090.5,15.71226]
[1720515674088,7.36,3091.8,3091.2,3.23494]
[1720515674298,1.12070569,3091.7,3091.2,3.23494]
[1720515674634,1.12073825,3091.6,3090.8,4.95433]
[1720515674775,1.35514264,3092.0,3091.0,3.23514]
[1720515674976,1.12075846,3091.9,3091.2,3.23497]
[1720515675206,1.1207325,3091.8,3091.2,3.23497]
[1720515675391,1.1207325,3091.7,3091.2,6.4699]
[1720515675726,3.0,3092.0,3091.2,6.46986]
[1720515675906,1.12068475,3091.9,3091.2,6.46986]
[1720515676216,0.93909677,3092.1,3091.0,3.23513]
[1720515676217,1.12068475,3091.8,3091.0,3.23513]
[1720515676428,1.12068475,3091.7,3091.0,3.23513]
[1720515676712,1.12068475,3091.6,3091.0,6.47024]
[1720515676916,1.65010869,3091.9,3091.1,3.23506]
[1720515677131,3.52942394,3091.9,3091.2,3.23491]
[1720515677421,1.12074185,3091.8,3091.2,3.23491]
[1720515677720,3.0,3092.1,3091.2,3.23491]
[1720515677877,1.12067878,3092.0,3091.6,6.46899]
[1720515678213,3.33806899,3092.2,3091.6,6.53367317]
[1720515678440,3.33806899,3092.2,3091.7,3.23444]
[1720515678575,0.33806899,3092.2,3091.7,3.23444]
[1720515678778,0.33806899,3092.2,3091.8,3.23429]
[1720515679484,0.33806899,3092.2,3091.8,3.29897087]
[1720515679706,0.33806899,3092.2,3092.0,6.46813]
[1720515680019,0.33806899,3092.2,3091.3,2.3778]
[1720515680020,7.36,3092.9,3092.3,3.23383]
[1720515680226,1.12032864,3092.8,3092.3,3.23383]
[1720515680518,0.36514426,3093.0,3092.3,3.23383]
[1720515680717,1.12032216,3092.9,3092.3,3.23383]
[1720515680925,0.36514426,3093.0,3092.3,3.23383]
[1720515681237,3.0,3093.0,3092.6,3.23346]
[1720515681403,0.33798607,3093.1,3092.6,3.23345]
[1720515681806,0.33798607,3093.1,3092.7,3.2334]
[1720515682557,0.33798607,3093.1,3092.4,3.23369]
[1720515682859,0.33798607,3093.1,3092.3,3.23382]
[1720515683009,0.33798607,3093.1,3092.1,3.23402]
[1720515683010,2.3191,3093.0,3092.1,3.23402]
[1720515683205,5.3191,3093.0,3092.0,4.95311]
[1720515683464,5.3191,3093.0,3092.1,3.23404]
[1720515684041,5.36720128,3093.0,3091.9,3.23425]
[1720515684312,0.6038986,3092.9,3091.9,3.23425]
[1720515684640,0.04810128,3092.8,3091.7,3.23439]
[1720515684874,1.12051954,3092.7,3091.5,3.2346]
[1720515685038,3.6038986,3092.9,3091.2,11.5972]
[1720515685039,3.65199988,3092.9,3091.4,3.23472]
[1720515685242,2.3191,3092.5,3091.4,3.23472]
[1720515685543,2.3191,3092.5,3091.2,8.18888]
[1720515685544,1.16865081,3092.4,3091.2,8.18888]
[1720515685744,1.12054953,3092.3,3091.3,3.23479]
[1720515686050,3.53191,3092.4,3091.4,3.23478]
[1720515686364,1.12064943,3092.3,3091.4,3.23478]
[1720515686571,1.16875071,3092.3,3091.4,3.23478]
[1720515686746,3.53191,3092.4,3091.4,3.23478]
[1720515686940,1.70574439,3092.3,3091.4,3.23478]
[1720515687247,1.12067147,3092.2,3091.4,3.23478]
[1720515687447,0.585101,3092.3,3091.4,3.23478]
[1720515689914,0.585101,3092.3,3091.4,6.46956]
[1720515690043,1.12065504,3092.2,3091.6,3.23456]
[1720515690243,3.53191,3092.4,3091.6,3.23456]
[1720515690745,0.72781412,3092.8,3092.0,3.23414]
[1720515691006,1.12049828,3092.7,3092.0,3.23414]
[1720515691184,0.72781412,3092.8,3092.0,3.23414]
[1720515691786,1.12046319,3092.7,3091.8,3.23428]
[1720515692087,1.3053826,3092.6,3091.8,3.23426]
[1720515692291,0.72781412,3092.8,3091.8,3.23426]
[1720515692499,1.12054886,3092.7,3091.8,3.23426]
[1720515692793,1.12054886,3092.6,3091.6,3.23451]
[1720515693102,2.3234,3092.4,3091.4,6.46939]
[1720515693383,2.3234,3092.4,3091.5,3.23464]
[1720515693977,2.3234,3092.4,3091.5,0.06468595]
[1720515694184,2.37150128,3092.4,3091.6,3.23446]
[1720515694385,2.37150128,3092.4,3091.5,3.23461]
[1720515694386,2.86055013,3092.4,3091.5,3.23461]
[1720515694595,3.0,3092.3,3091.5,3.2346]
[1720515694804,2.3234,3092.4,3091.7,3.23446]
[1720515695212,2.3234,3092.4,3091.2,3.981]
[1720515695517,1.12059929,3092.3,3091.6,3.23451]
[1720515695682,3.0,3092.3,3091.7,3.23445]
[1720515696060,2.3234,3092.4,3091.7,3.23445]
[1720515697299,2.3234,3092.4,3091.7,3.23441]
[1720515697500,2.3234,3092.4,3091.8,3.23427]
[1720515698623,0.33805924,3092.6,3092.1,3.23404]
[1720515699180,1.120449,3092.5,3092.1,3.23404]
[1720515699431,0.33805924,3092.6,3092.1,3.23404]
[1720515699645,1.12045264,3092.5,3092.1,3.23404]
[1720515699795,0.33805924,3092.6,3092.1,3.23404]
[1720515701235,1.1204112,3092.5,3092.1,3.23404]
[1720515701535,0.33805924,3092.6,3092.1,3.23404]
[1720515701696,1.12040763,3092.5,3092.1,3.23404]
[1720515702044,1.12044591,3092.4,3092.1,3.23404]
[1720515702252,0.33805924,3092.6,3092.1,3.23404]
[1720515702448,1.12042951,3092.5,3091.9,3.23417]
[1720515702636,1.12042951,3092.4,3091.9,3.23417]
[1720515702804,1.12042951,3092.5,3091.9,3.23417]
[1720515703006,0.33805924,3092.6,3091.9,3.23417]
[1720515703219,1.12048888,3092.5,3091.9,3.23417]
[1720515703448,1.12048888,3092.4,3092.0,3.23413]
[1720515703746,0.33805924,3092.6,3092.3,3.23383]
[1720515704107,3.0,3092.9,3092.3,3.23383]
[1720515704313,1.12032334,3092.8,3092.3,3.23383]
[1720515704541,1.12032334,3092.7,3092.4,3.23371]
[1720515704721,1.35266872,3093.3,3092.0,1.719]
[1720515704722,7.36,3093.3,3092.6,3.23344]
[1720515704923,1.12026751,3093.2,3092.8,3.23326]
[1720515705132,1.12026751,3093.1,3092.8,3.23326]
[1720515705412,0.33800943,3093.4,3092.8,3.23325]
[1720515705644,1.1201577,3093.3,3092.8,3.23325]
[1720515705941,1.1201577,3093.2,3092.8,3.23325]
[1720515706152,1.1201577,3093.3,3092.8,3.23325]
[1720515706355,1.12016514,3093.2,3092.9,3.23321]
[1720515706506,3.33800943,3093.4,3092.9,3.23321]
[1720515706713,1.12014148,3093.3,3092.9,3.23321]
[1720515707006,0.33800943,3093.4,3092.9,3.23321]
[1720515707207,0.33800943,3093.4,3092.8,3.29790924]
[1720515707208,0.33800943,3093.4,3093.0,3.29766925]
[1720515707552,0.33800943,3093.4,3093.2,3.23289]
[1720515707925,7.36,3093.8,3093.3,3.23278]
[1720515708127,1.11997519,3093.7,3093.3,3.23278]
[1720515708308,0.33802867,3093.8,3093.3,3.23278]
[1720515709132,0.33802867,3093.8,3093.3,3.23277]
[1720515709710,0.33802867,3093.8,3093.4,3.23268]
[1720515709951,0.33802867,3093.8,3093.6,3.23246]
[1720515710310,0.3246,3095.1,3093.6,3.23246]
[1720515710311,7.36,3095.3,3094.7,3.23132]
[1720515710597,1.11955052,3095.2,3094.1,3.23187]
[1720515710763,5.5130518,3095.1,3093.7,4.95136]
[1720515710956,2.0121557,3095.0,3093.7,3.23236]
[1720515711152,1.1676518,3094.9,3093.7,3.23236]
[1720515711358,1.11955052,3094.8,3093.7,3.23236]
[1720515711788,0.04810128,3094.7,3093.3,4.95172]
[1720515711967,2.4836,3094.5,3093.4,3.23268]
[1720515712187,1.1676518,3094.4,3093.4,3.23268]
[1720515712354,3.04810128,3094.4,3093.3,4.95172]
[1720515712563,3.04810128,3094.4,3092.9,4.95212]
[1720515712564,0.04810128,3094.3,3092.9,4.95212]
[1720515712764,1.42478599,3094.2,3092.9,4.95211]
[1720515713083,1.16807714,3094.1,3092.9,4.95211]
[1720515713255,0.04810128,3094.1,3093.1,3.23298]
[1720515713968,0.30481013,3094.2,3092.9,1.719]
[1720515714173,3.0,3094.4,3093.3,1.719]
[1720515714369,5.4836,3094.5,3093.5,3.23257]
[1720515714680,1.11989513,3094.4,3093.5,3.23257]
[1720515714882,3.0,3094.4,3093.5,3.23257]
[1720515715065,3.0,3094.4,3093.3,4.95177]
[1720515715400,0.54836,3094.3,3093.3,4.95177]
[1720515715594,0.54836,3094.3,3093.5,3.23258]
[1720515716101,0.54836,3094.3,3093.3,4.9517]
[1720515717107,0.54836,3094.3,3093.4,3.23265]
[1720515717966,0.54836,3094.3,3093.3,1.719]
[1720515718165,0.354836,3094.2,3093.3,1.719]
[1720515718393,0.354836,3094.2,3093.3,4.95178]
[1720515718595,0.354836,3094.2,3093.3,1.719]
[1720515718761,0.354836,3094.2,3093.3,4.95177]
[1720515718964,0.54836,3094.3,3093.3,4.95177]
[1720515719272,0.54836,3094.3,3093.4,3.23268]
[1720515719856,0.54836,3094.3,3093.3,1.719]
[1720515720103,0.54836,3094.3,3093.3,4.95179]
[1720515720262,0.54836,3094.3,3093.3,4.95173]
[1720515720466,0.54836,3094.3,3093.4,3.23267]
[1720515720801,0.354836,3094.2,3093.4,3.23267]
[1720515720983,0.354836,3094.2,3093.3,4.95173]
[1720515722228,0.354836,3094.2,3093.4,3.23268]
[1720515722376,0.354836,3094.2,3093.5,3.23257]
[1720515722688,3.0,3094.4,3093.5,3.23257]
[1720515722879,5.4836,3094.5,3093.5,3.23257]
[1720515723277,2.4836,3094.5,3093.7,3.23236]
[1720515723478,9.825,3094.9,3093.7,4.95129]
[1720515723674,9.825,3094.9,3093.7,1.719]
[1720515723675,2.15042983,3094.8,3093.7,1.719]
[1720515723875,2.15042983,3094.8,3093.3,1.719]
[1720515723876,2.4328,3094.6,3093.3,1.719]
[1720515724079,2.4328,3094.4,3092.9,1.719]
[1720515724279,1.16792983,3094.3,3092.9,1.719]
[1720515724492,1.16792983,3094.2,3093.0,3.23308]
[1720515724725,1.11982855,3094.1,3092.8,6.46644]
[1720515724919,1.16821318,3094.0,3092.8,3.23322]
[1720515725124,0.04810128,3094.0,3092.9,3.23319]
[1720515725622,0.04810128,3094.0,3092.9,3.23315]
[1720515726115,1.12009465,3093.9,3092.9,3.23315]
[1720515726316,3.77908,3094.3,3093.0,3.23307]
[1720515726616,2.07080738,3094.2,3093.2,3.23283]
[1720515726916,1.1200795,3094.1,3093.5,3.23253]
[1720515727125,2.4328,3094.4,3093.5,3.29717456]
[1720515727587,1.11990645,3094.3,3093.5,6.52969456]
[1720515727787,2.4328,3094.4,3093.5,6.52969456]
[1720515728106,2.4328,3094.4,3093.6,3.23244]
[1720515730221,1.11986404,3094.3,3093.4,3.23268]
[1720515730420,1.11986404,3094.2,3093.4,3.23268]
[1720515730622,1.11986404,3094.2,3093.6,3.23247]
[1720515730932,3.0,3094.3,3093.6,3.23247]
[1720515731102,2.4328,3094.4,3093.6,3.23247]
[1720515731292,1.11982659,3094.3,3093.6,3.23247]
[1720515731494,3.0,3094.7,3093.6,3.23247]
[1720515731812,3.0,3094.7,3093.9,3.23216]
[1720515731813,1.11981422,3094.6,3093.9,3.23216]
[1720515731995,1.11981257,3094.5,3093.9,3.23216]
[1720515732208,1.11981257,3094.4,3093.9,3.23216]
[1720515732511,3.0,3094.7,3093.7,3.23227]
[1720515732712,1.11980324,3094.6,3093.7,3.23227]
[1720515732912,1.11980324,3094.5,3093.7,3.23227]
[1720515733112,1.11980324,3094.6,3093.7,3.23227]
[1720515733429,3.5484,3094.7,3093.7,3.23227]
[1720515733430,1.11980324,3094.5,3093.7,3.23227]
[1720515733611,1.11980324,3094.6,3093.7,3.23227]
[1720515734632,1.11980324,3094.6,3093.8,3.23226]
[1720515734860,1.11986906,3094.5,3093.8,3.23226]
[1720515735031,1.11986906,3094.5,3093.7,3.23227]
[1720515735205,1.11986906,3094.4,3093.7,6.46458]
[1720515735411,1.11986906,3094.3,3093.7,6.46458]
[1720515735623,1.11986906,3094.2,3093.8,3.23225]
[1720515735823,1.11986906,3094.1,3093.8,3.23225]
[1720515736011,3.5484,3094.7,3093.8,3.23225]
[1720515736225,1.119807,3094.6,3093.8,3.23225]
[1720515736541,1.119807,3094.5,3093.8,3.23225]
[1720515736842,1.119807,3094.4,3093.8,3.23225]
[1720515737007,1.119807,3094.6,3093.8,3.23225]
[1720515737214,1.119807,3094.5,3093.8,6.46445]
[1720515737425,1.119807,3094.4,3093.8,3.2322]
[1720515737625,1.119807,3094.3,3093.7,2.3851]
[1720515737833,1.119807,3094.3,3093.4,3.23262]
[1720515738034,1.11986733,3094.2,3093.5,3.23257]
[1720515738356,1.11986733,3094.1,3093.5,3.23256]
[1720515738535,1.11986733,3094.0,3093.5,3.23251]
[1720515738711,1.11986733,3094.4,3093.5,3.23251]
[1720515739049,1.11986733,3094.3,3093.5,3.23248]
[1720515739348,1.11986733,3094.2,3093.5,3.23248]
[1720515739549,1.11986733,3094.4,3093.4,3.23262]
[1720515739758,1.11986733,3094.3,3093.5,3.23253]
[1720515739913,1.11986733,3094.3,3093.5,3.23252]
[1720515740448,1.11986733,3094.2,3093.6,3.23241]
[1720515740633,1.11986733,3094.1,3093.6,3.23241]
[1720515740845,1.11986733,3094.0,3093.6,3.23241]
[1720515741023,1.11986733,3093.9,3093.7,3.23233]
[1720515741234,3.0,3094.5,3093.8,3.23227]
[1720515741533,1.11981549,3094.4,3093.8,3.23227]
[1720515741848,1.11981455,3094.3,3093.9,3.23211]
[1720515742052,1.11981455,3094.2,3093.9,3.23211]
[1720515742351,1.11981455,3094.1,3093.9,3.23211]
[1720515742737,1.11978749,3094.0,3093.9,3.23211]
[1720515743051,3.0,3094.5,3093.9,3.23211]
[1720515743348,1.11978798,3094.4,3093.9,3.23211]
[1720515743552,1.11978798,3094.3,3093.9,3.23211]
[1720515743770,1.11978798,3094.2,3094.0,3.23205]
[1720515743989,3.33920017,3096.1,3094.0,3.23205]
[1720515743990,7.36,3095.0,3094.3,3.23171]
[1720515744125,2.02820831,3095.6,3094.6,3.23138]
[1720515744126,1.11963402,3094.9,3094.6,3.23138]
[1720515744325,7.36,3095.5,3094.6,3.23138]
[1720515744559,1.1194835,3095.4,3094.4,3.23158]
[1720515744731,1.1194835,3095.3,3094.5,3.23151]
[1720515744941,1.1194835,3095.4,3094.5,3.23151]
[1720515745330,1.1194835,3095.4,3094.5,0.06462578]
[1720515745533,1.1194835,3095.4,3094.8,3.23116]
[1720515745760,1.1194835,3095.4,3094.5,1.719]
[1720515746071,1.1194835,3095.4,3094.7,3.23123]
[1720515746426,1.1194835,3095.4,3094.5,1.719]
[1720515746427,1.64743369,3095.4,3094.5,1.719]
[1720515746764,1.64743369,3095.4,3094.3,3.23166]
[1720515746765,1.1194835,3095.3,3094.3,3.23166]
[1720515746973,1.1194835,3095.2,3094.5,3.23152]
[1720515747156,1.1194835,3095.3,3094.5,3.23152]
[1720515747379,1.1194835,3095.3,3094.5,3.23148]
[1720515747526,7.36,3095.5,3094.5,3.23148]
[1720515747723,1.11948231,3095.4,3094.5,3.23148]
[1720515748161,1.11948231,3095.4,3094.8,3.23122]
[1720515749970,2.4455,3095.6,3094.8,3.23122]
[1720515750272,1.11940818,3095.5,3094.8,2.3508]
[1720515750429,7.36,3095.9,3095.2,3.2308]
[1720515750629,1.11931917,3095.8,3095.2,3.2308]
[1720515750871,2.4852,3096.0,3095.2,3.2308]
[1720515751371,7.36,3096.4,3095.2,3.23072]
[1720515751372,11.136835,3096.4,3095.2,3.23072]
[1720515751531,1.119169,3096.3,3095.4,3.23053]
[1720515751731,1.119169,3096.2,3095.4,3.23053]
[1720515752876,1.16735989,3096.1,3094.9,4.95005]
[1720515753032,1.11925861,3096.0,3094.9,3.23105]
[1720515753234,1.45706369,3096.0,3094.9,3.23105]
[1720515753446,1.11925861,3095.9,3094.9,3.23105]
[1720515753668,0.33780508,3096.0,3094.9,3.23105]
[1720515753969,0.355572,3095.9,3094.8,2.3508]
[1720515754271,0.355572,3095.9,3094.5,1.719]
[1720515754272,0.355572,3095.9,3095.7,3.23028]
[1720515754738,0.355572,3095.9,3095.5,2.3211]
[1720515754940,0.355572,3095.9,3095.4,3.23054]
[1720515755273,0.355572,3095.9,3095.1,3.23086]
[1720515755453,0.355572,3095.9,3095.2,3.23078]
[1720515756630,0.355572,3095.9,3095.0,5.55204]
[1720515756827,0.04810128,3095.8,3094.8,1.719]
[1720515757045,3.66283984,3095.9,3094.7,3.23132]
[1720515757351,3.355572,3095.9,3094.9,3.23106]
[1720515757657,0.355572,3095.9,3094.9,2.3982]
[1720515758042,0.355572,3095.9,3095.0,3.231]
[1720515758767,0.355572,3095.9,3095.1,3.23087]
[1720515759378,2.4357,3095.8,3094.8,1.719]
[1720515759529,2.4357,3095.8,3094.8,4.95022]
[1720515759530,3.55507686,3095.8,3094.8,4.95022]
[1720515759729,2.4357,3095.8,3094.8,1.719]
[1720515759961,2.4357,3095.8,3094.6,3.23136]
[1720515759962,1.11942465,3095.7,3094.6,3.23136]
[1720515760167,2.86535552,3095.8,3094.6,3.23136]
[1720515760473,1.11943408,3095.7,3094.6,3.23136]
[1720515760800,1.11944836,3095.6,3094.7,3.23128]
[1720515760981,2.4357,3095.8,3094.4,7.44429]
[1720515761186,5.4357,3095.8,3095.0,3.23098]
[1720515761961,0.04810128,3095.7,3094.6,3.23138]
[1720515762173,0.04810128,3095.7,3094.7,3.23126]
[1720515762504,5.4357,3095.8,3094.9,3.23107]
[1720515762804,5.4357,3095.8,3095.0,3.231]
[1720515763482,5.4357,3095.8,3094.9,3.23107]
[1720515763658,1.11937865,3095.7,3094.9,3.23111]
[1720515763861,6.04860771,3095.8,3094.9,3.23111]
[1720515764223,5.4357,3095.8,3094.9,3.29572508]
[1720515764514,5.4357,3095.8,3095.1,3.23084]
[1720515764903,5.4357,3095.8,3095.1,6.46169]
[1720515765261,5.4357,3095.8,3095.1,6.46168]
[1720515765505,5.4357,3095.8,3095.1,3.23084]
[1720515766008,5.4357,3095.8,3095.2,3.2308]
[1720515767184,0.355572,3095.9,3095.5,3.23049]
[1720515767387,0.355572,3095.9,3095.3,3.2306]
[1720515767583,0.355572,3095.9,3095.4,3.23059]
[1720515767817,0.355572,3095.9,3095.2,3.23073]
[1720515768618,0.355572,3095.9,3095.3,3.2307]
[1720515768984,0.355572,3095.9,3095.3,3.23063]
[1720515769185,0.355572,3095.9,3095.4,3.2305]
[1720515769400,0.355572,3095.9,3095.7,3.2302]
[1720515769790,0.355572,3095.9,3095.7,6.4604]
[1720515770004,0.355572,3095.9,3095.7,3.2302]
[1720515770491,0.355572,3095.9,3095.8,3.23018]
[1720515770889,0.355572,3095.9,3095.8,6.52495848]
[1720515771094,0.355572,3095.9,3095.8,3.23018]
[1720515772389,0.355572,3095.9,3095.6,4.94932]
[1720515772701,0.355572,3095.9,3095.2,1.719]
[1720515773040,0.355572,3095.9,3095.5,3.23043]
[1720515773345,0.355572,3095.9,3095.3,3.23062]
[1720515773511,0.355572,3095.9,3095.3,6.46125]
[1720515774055,0.355572,3095.9,3095.3,3.23062]
[1720515774850,0.355572,3095.9,3095.3,3.23063]
[1720515775051,0.355572,3095.9,3095.6,3.23038]
[1720515776109,0.355572,3095.9,3095.7,3.23027]
[1720515776464,0.355572,3095.9,3095.8,3.23018]
[1720515776752,0.355572,3095.9,3095.7,3.2302]
[1720515777316,0.355572,3095.9,3095.8,3.23018]
[1720515777561,0.355572,3095.9,3095.8,6.46036]
[1720515780317,0.355572,3095.9,3095.8,7.01036]
[1720515780939,0.355572,3095.9,3095.8,6.46036]
[1720515782491,0.355572,3095.9,3095.8,7.01036]
[1720515784270,0.355572,3095.9,3095.7,6.46043]
[1720515784452,0.355572,3095.9,3095.7,6.46042]
[1720515784653,0.355572,3095.9,3095.7,3.2302]